fUST/lending_fUST_20251029
["ID","MTS","AMOUNT","RATE_DAILY","PERIOD"]
[392577686,1761684641270,-500.0,0.00022465,2]
[392577687,1761684641280,-591.11,0.00022465,2]
[392577689,1761684641289,-500.0,0.00022465,2]
[392577690,1761684641299,-500.0,0.00022465,2]
[392577691,1761684641308,-1144.75,0.00022465,2]
[392577692,1761684641317,-500.0,0.00022465,2]
[392577693,1761684641326,-500.0,0.00022465,2]
[392577694,1761684641336,-677.49,0.00022465,2]
[392577695,1761684641345,-500.0,0.00022465,2]
[392577696,1761684641353,-500.0,0.00022465,2]
[392577697,1761684641362,-543.22965964,0.00022465,2]
[392577698,1761684641371,-878.79,0.00022465,2]
[392577699,1761684641381,-554.59,0.00022465,2]
[392577700,1761684641390,-826.78,0.00022465,2]
[392577701,1761684641400,-775.41,0.00022465,2]
[392577702,1761684641409,-500.0,0.00022465,2]
[392577703,1761684641418,-1677.72,0.00022465,2]
[392577704,1761684641427,-500.0,0.00022465,2]
[392577705,1761684641436,-511.98,0.00022465,2]
[392577706,1761684641445,-500.0,0.00022465,2]
[392577707,1761684641454,-500.0,0.00022465,2]
[392577708,1761684641464,-957.05,0.00022465,2]
[392577709,1761684641473,-500.0,0.00022465,2]
[392577710,1761684641482,-500.0,0.00022465,2]
[392577711,1761684641491,-500.0,0.00022465,2]
[392577712,1761684641500,-500.0,0.00022465,2]
[392577713,1761684641510,-500.0,0.00022465,2]
[392577714,1761684641522,-751.61,0.00022465,2]
[392577715,1761684641531,-623.02,0.00022465,2]
[392577716,1761684641540,-984.99,0.00022465,2]
[392577717,1761684641550,-762.88,0.00022465,2]
[392577718,1761684641559,-500.0,0.00022465,2]
[392577719,1761684641569,-755.56,0.00022465,2]
[392577720,1761684641578,-500.0,0.00022465,2]
[392577721,1761684641587,-640.15,0.00022465,2]
[392577722,1761684641598,-500.0,0.00022465,2]
[392577723,1761684641607,-500.0,0.00022465,2]
[392577724,1761684641617,-1050.98,0.00022465,2]
[392577725,1761684641626,-500.0,0.00022465,2]
[392577726,1761684641636,-685.53,0.00022465,2]
[392577727,1761684641645,-696.01,0.00022465,2]
[392577728,1761684641654,-3716.26,0.00022465,2]
[392577729,1761684641663,-500.0,0.00022465,2]
[392577730,1761684641672,-500.0,0.00022465,2]
[392577731,1761684641681,-500.0,0.00022465,2]
[392577732,1761684641691,-500.0,0.00022465,2]
[392577733,1761684641700,-786.96,0.00022465,2]
[392577734,1761684641709,-1465.23,0.00022465,2]
[392577735,1761684641718,-500.0,0.00022465,2]
[392577736,1761684641727,-500.0,0.00022465,2]
[392577737,1761684641737,-500.0,0.00022465,2]
[392577738,1761684641747,-500.0,0.00022465,2]
[392577739,1761684641757,-500.0,0.00022465,2]
[392577740,1761684641769,-528.4,0.00022465,2]
[392577741,1761684641779,-500.0,0.00022465,2]
[392577742,1761684641788,-500.0,0.00022465,2]
[392577743,1761684641798,-891.88,0.00022465,2]
[392577744,1761684641809,-2371.14,0.00022465,2]
[392577745,1761684641818,-598.51,0.00022465,2]
[392577746,1761684641827,-195.79169838,0.00022465,2]
[392577747,1761684641838,-500.0,0.00022465,2]
[392577748,1761684641848,-741.68,0.00022465,2]
[392577749,1761684641857,-500.0,0.00022465,2]
[392577750,1761684641867,-500.0,0.00022465,2]
[392577751,1761684641876,-500.0,0.00022465,2]
[392577752,1761684641886,-500.0,0.00022465,2]
[392577753,1761684641895,-1289.61,0.00022465,2]
[392577754,1761684641906,-584.89,0.00022465,2]
[392577755,1761684641916,-500.0,0.00022465,2]
[392577756,1761684641925,-500.0,0.00022465,2]
[392577757,1761684641934,-500.0,0.00022465,2]
[392577758,1761684641944,-960.71,0.00022465,2]
[392577759,1761684641954,-642.85,0.00022465,2]
[392577760,1761684641966,-1384.85,0.00022465,2]
[392577761,1761684641976,-500.0,0.00022465,2]
[392577762,1761684641986,-1494.95,0.00022465,2]
[392577763,1761684641995,-526.78,0.00022465,2]
[392577764,1761684642005,-921.96,0.00022465,2]
[392577765,1761684642014,-443.085169,0.00022465,2]
[392577766,1761684642023,-500.0,0.00022465,2]
[392577767,1761684642033,-500.0,0.00022465,2]
[392577768,1761684642042,-500.0,0.00022465,2]
[392577769,1761684642052,-830.95,0.00022465,2]
[392577770,1761684642062,-1687.31,0.00022465,2]
[392577771,1761684642071,-500.0,0.00022465,2]
[392577772,1761684642081,-500.0,0.00022465,2]
[392577773,1761684642091,-953.15,0.00022465,2]
[392577774,1761684642101,-2031.7,0.00022465,2]
[392577775,1761684642111,-500.0,0.00022465,2]
[392577776,1761684642120,-746.41,0.00022465,2]
[392577777,1761684642129,-1324.25,0.00022465,2]
[392577778,1761684642139,-920.67,0.00022465,2]
[392577779,1761684642149,-1110.59,0.00022465,2]
[392577780,1761684642160,-500.0,0.00022465,2]
[392577781,1761684642169,-500.0,0.00022465,2]
[392577782,1761684642180,-500.0,0.00022465,2]
[392577783,1761684642189,-996.9,0.00022465,2]
[392577784,1761684642198,-1509.24,0.00022465,2]
[392577785,1761684642208,-555.99,0.00022465,2]
[392577786,1761684642218,-500.0,0.00022465,2]
[392577787,1761684642227,-1004.61,0.00022465,2]
[392577789,1761684642238,-669.33,0.00022465,2]
[392577791,1761684642248,-500.0,0.00022465,2]
[392577793,1761684642257,-597.66,0.00022465,2]
[392577795,1761684642267,-500.0,0.00022465,2]
[392577797,1761684642276,-522.76,0.00022465,2]
[392577799,1761684642286,-500.0,0.00022465,2]
[392577801,1761684642295,-668.12,0.00022465,2]
[392577803,1761684642304,-500.0,0.00022465,2]
[392577805,1761684642313,-966.05,0.00022465,2]
[392577807,1761684642323,-300.0,0.000225,2]
[392577809,1761684642332,-300.0,0.000225,2]
[392577811,1761684642342,-1000.0,0.00022521,2]
[392577813,1761684642351,-1000.0,0.00022521,2]
[392577815,1761684642360,-1000.0,0.00022521,2]
[392577817,1761684642371,-1000.0,0.00022521,2]
[392577820,1761684642383,-1000.0,0.00022521,2]
[392577822,1761684642393,-1000.0,0.00022521,2]
[392577824,1761684642408,-1000.0,0.00022521,2]
[392577826,1761684642417,-168.0,0.00022729,2]
[392577828,1761684642426,-540.46,0.00022739,2]
[392577830,1761684642436,-500.0,0.00022739,2]
[392577832,1761684642446,-500.0,0.00022739,2]
[392577834,1761684642455,-500.0,0.00022739,2]
[392577836,1761684642466,-500.0,0.00022739,2]
[392577839,1761684642476,-500.0,0.00022739,2]
[392577841,1761684642487,-575.48,0.00022739,2]
[392577843,1761684642496,-514.44986473,0.00022739,2]
[392577845,1761684642506,-716.46496226,0.00022739,2]
[392577847,1761684642520,-2862.99398918,0.00022739,2]
[392577849,1761684642530,-500.0,0.00022739,2]
[392577851,1761684642541,-333.37711981,0.00022739,2]
[392577853,1761684642551,-500.0,0.00022739,2]
[392577855,1761684642561,-500.0,0.00022739,2]
[392577857,1761684642571,-500.0,0.00022739,2]
[392577859,1761684642580,-500.0,0.00022739,2]
[392577861,1761684642590,-500.0,0.00022739,2]
[392577862,1761684642600,-500.0,0.00022739,2]
[392577863,1761684642610,-500.0,0.00022739,2]
[392577864,1761684642620,-500.0,0.00022739,2]
[392577865,1761684642630,-500.0,0.00022739,2]
[392577866,1761684642639,-500.0,0.00022739,2]
[392577867,1761684642649,-594.14,0.00022739,2]
[392577868,1761684642661,-500.0,0.00022739,2]
[392577869,1761684642671,-195.01434795,0.00022739,2]
[392577870,1761684642682,-500.0,0.00022739,2]
[392577871,1761684642691,-779.27733442,0.00022739,2]
[392577872,1761684642701,-500.0,0.00022739,2]
[392577873,1761684642711,-500.0,0.00022739,2]
[392577874,1761684642721,-648.27,0.00022739,2]
[392577875,1761684642730,-2433.62,0.00022739,2]
[392577876,1761684642740,-500.0,0.00022739,2]
[392577877,1761684642750,-500.0,0.00022739,2]
[392577878,1761684642759,-500.0,0.00022739,2]
[392577879,1761684642770,-500.0,0.00022739,2]
[392577880,1761684642780,-500.0,0.00022739,2]
[392577881,1761684642789,-354.73093982,0.00022739,2]
[392577882,1761684642800,-500.0,0.00022739,2]
[392577883,1761684642810,-500.0,0.00022739,2]
[392577884,1761684642819,-500.0,0.00022739,2]
[392577885,1761684642829,-500.0,0.00022739,2]
[392577886,1761684642838,-500.0,0.00022739,2]
[392577887,1761684642849,-500.0,0.00022739,2]
[392577888,1761684642859,-500.0,0.00022739,2]
[392577889,1761684642868,-500.0,0.00022739,2]
[392577890,1761684642879,-500.0,0.00022739,2]
[392577891,1761684642889,-613.66734051,0.00022739,2]
[392577892,1761684642899,-500.0,0.00022739,2]
[392577893,1761684642916,-500.0,0.00022739,2]
[392577894,1761684642926,-500.0,0.00022739,2]
[392577895,1761684642936,-940.28,0.00022739,2]
[392577896,1761684642946,-500.0,0.00022739,2]
[392577897,1761684642956,-500.0,0.00022739,2]
[392577898,1761684642966,-210.9988666,0.00022739,2]
[392577899,1761684642976,-580.44,0.00022739,2]
[392577900,1761684642986,-377.98042484,0.00022739,2]
[392577901,1761684642997,-500.0,0.00022739,2]
[392577902,1761684643007,-500.0,0.00022739,2]
[392577903,1761684643018,-500.0,0.00022739,2]
[392577904,1761684643028,-500.0,0.00022739,2]
[392577905,1761684643038,-500.0,0.00022739,2]
[392577906,1761684643048,-500.0,0.00022739,2]
[392577907,1761684643058,-507.95215979,0.00022739,2]
[392577908,1761684643068,-500.0,0.00022739,2]
[392577909,1761684643078,-500.0,0.00022739,2]
[392577910,1761684643088,-500.0,0.00022739,2]
[392577911,1761684643098,-728.95,0.00022739,2]
[392577912,1761684643108,-500.0,0.00022739,2]
[392577913,1761684643118,-500.0,0.00022739,2]
[392577914,1761684643128,-500.0,0.00022739,2]
[392577915,1761684643138,-500.0,0.00022739,2]
[392577916,1761684643148,-500.0,0.00022739,2]
[392577917,1761684643160,-500.0,0.00022739,2]
[392577918,1761684643170,-500.0,0.00022739,2]
[392577919,1761684643179,-500.0,0.00022739,2]
[392577920,1761684643190,-500.0,0.00022739,2]
[392577921,1761684643200,-500.0,0.00022739,2]
[392577922,1761684643210,-557.52,0.00022739,2]
[392577923,1761684643220,-500.0,0.00022739,2]
[392577924,1761684643230,-500.0,0.00022739,2]
[392577925,1761684643240,-502.08,0.00022739,2]
[392577926,1761684643251,-500.0,0.00022739,2]
[392577927,1761684643263,-500.0,0.00022739,2]
[392577928,1761684643274,-500.0,0.00022739,2]
[392577929,1761684643284,-500.0,0.00022739,2]
[392577930,1761684643294,-500.0,0.00022739,2]
[392577931,1761684643304,-500.0,0.00022739,2]
[392577932,1761684643315,-500.0,0.00022739,2]
[392577933,1761684643325,-628.01,0.00022739,2]
[392577934,1761684643335,-793.46,0.00022739,2]
[392577935,1761684643346,-500.0,0.00022739,2]
[392577936,1761684643356,-500.0,0.00022739,2]
[392577937,1761684643366,-667.98,0.00022739,2]
[392577938,1761684643376,-500.0,0.00022739,2]
[392577939,1761684643386,-500.0,0.00022739,2]
[392577940,1761684643397,-600.17663751,0.00022739,2]
[392577941,1761684643409,-896.12,0.00022739,2]
[392577942,1761684643420,-500.0,0.00022739,2]
[392577943,1761684643429,-500.0,0.00022739,2]
[392577944,1761684643439,-500.0,0.00022739,2]
[392577945,1761684643450,-500.0,0.00022739,2]
[392577946,1761684643460,-515.05,0.00022739,2]
[392577947,1761684643470,-500.0,0.00022739,2]
[392577948,1761684643481,-500.0,0.00022739,2]
[392577949,1761684643491,-500.0,0.00022739,2]
[392577950,1761684643500,-500.0,0.00022739,2]
[392577951,1761684643513,-500.0,0.00022739,2]
[392577952,1761684643525,-536.02,0.00022739,2]
[392577953,1761684643535,-513.34,0.00022739,2]
[392577954,1761684643545,-500.0,0.00022739,2]
[392577955,1761684643555,-500.0,0.00022739,2]
[392577956,1761684643566,-500.0,0.00022739,2]
[392577957,1761684643576,-500.0,0.00022739,2]
[392577958,1761684643588,-500.0,0.00022739,2]
[392577959,1761684643599,-500.0,0.00022739,2]
[392577960,1761684643609,-500.0,0.00022739,2]
[392577961,1761684643620,-500.0,0.00022739,2]
[392577962,1761684643634,-500.0,0.00022739,2]
[392577963,1761684643646,-500.0,0.00022739,2]
[392577964,1761684643659,-500.0,0.00022739,2]
[392577965,1761684643671,-500.0,0.00022739,2]
[392577966,1761684643684,-500.0,0.00022739,2]
[392577967,1761684643697,-500.0,0.00022739,2]
[392577968,1761684643708,-624.67,0.00022739,2]
[392577969,1761684643718,-854.24,0.00022739,2]
[392577970,1761684643729,-500.0,0.00022739,2]
[392577971,1761684643740,-500.0,0.00022739,2]
[392577972,1761684643752,-995.13,0.00022739,2]
[392577973,1761684643763,-2418.13,0.00022739,2]
[392577974,1761684643775,-500.0,0.00022739,2]
[392577975,1761684643787,-500.0,0.00022739,2]
[392577976,1761684643798,-500.0,0.00022739,2]
[392577977,1761684643810,-500.0,0.00022739,2]
[392577978,1761684643821,-500.0,0.00022739,2]
[392577979,1761684643832,-500.0,0.00022739,2]
[392577980,1761684643844,-982.04851117,0.00022739,2]
[392577981,1761684644075,-8460.73148883,0.00022739,2]
[392577982,1761684644087,-726.0,0.00022739,2]
[392577983,1761684644098,-509.83,0.00022739,2]
[392577984,1761684644112,-500.0,0.00022739,2]
[392577985,1761684644123,-696.15,0.00022739,2]
[392577986,1761684644135,-1049.87,0.00022739,2]
[392577987,1761684644145,-500.0,0.00022739,2]
[392577988,1761684644155,-371.22450298,0.00022739,2]
[392577989,1761684644166,-500.0,0.00022739,2]
[392577990,1761684644176,-500.0,0.00022739,2]
[392577991,1761684644187,-1006.51,0.00022739,2]
[392577992,1761684644198,-812.22,0.00022739,2]
[392577993,1761684644208,-500.0,0.00022739,2]
[392577994,1761684644218,-473.65930189,0.00022739,2]
[392577995,1761684644227,-500.0,0.00022739,2]
[392577996,1761684644237,-591.11,0.00022739,2]
[392577997,1761684644247,-500.0,0.00022739,2]
[392577998,1761684644258,-500.0,0.00022739,2]
[392577999,1761684644269,-1144.75,0.00022739,2]
[392578000,1761684644281,-500.0,0.00022739,2]
[392578001,1761684644291,-192.861175,0.00022739,2]
[392578002,1761684644301,-677.49,0.00022739,2]
[392578003,1761684644314,-500.0,0.00022739,2]
[392578004,1761684644324,-500.0,0.00022739,2]
[392578005,1761684644335,-878.79,0.00022739,2]
[392578006,1761684644345,-554.59,0.00022739,2]
[392578007,1761684644355,-826.78,0.00022739,2]
[392578008,1761684644365,-775.41,0.00022739,2]
[392578009,1761684644376,-500.0,0.00022739,2]
[392578010,1761684644387,-604.52145056,0.00022739,2]
[392578011,1761684644397,-1677.72,0.00022739,2]
[392578012,1761684644409,-511.98,0.00022739,2]
[392578013,1761684644419,-500.0,0.00022739,2]
[392578014,1761684644430,-500.0,0.00022739,2]
[392578015,1761684644440,-957.05,0.00022739,2]
[392578016,1761684644451,-455.07715772,0.00022739,2]
[392578017,1761684644461,-500.0,0.00022739,2]
[392578018,1761684644471,-500.0,0.00022739,2]
[392578019,1761684644481,-500.0,0.00022739,2]
[392578020,1761684644491,-500.0,0.00022739,2]
[392578021,1761684644501,-751.61,0.00022739,2]
[392578022,1761684644519,-623.02,0.00022739,2]
[392578023,1761684644529,-984.99,0.00022739,2]
[392578024,1761684644540,-762.88,0.00022739,2]
[392578025,1761684644551,-500.0,0.00022739,2]
[392578026,1761684644564,-755.56,0.00022739,2]
[392578027,1761684644574,-500.0,0.00022739,2]
[392578028,1761684644584,-640.15,0.00022739,2]
[392578029,1761684644595,-500.0,0.00022739,2]
[392578030,1761684644606,-500.0,0.00022739,2]
[392578031,1761684644616,-1050.98,0.00022739,2]
[392578032,1761684644627,-500.0,0.00022739,2]
[392578033,1761684644637,-685.53,0.00022739,2]
[392578034,1761684644648,-696.01,0.00022739,2]
[392578035,1761684644659,-3716.26,0.00022739,2]
[392578036,1761684644669,-500.0,0.00022739,2]
[392578037,1761684644680,-500.0,0.00022739,2]
[392578038,1761684644690,-500.0,0.00022739,2]
[392578039,1761684644700,-500.0,0.00022739,2]
[392578040,1761684644711,-786.96,0.00022739,2]
[392578041,1761684644721,-1465.23,0.00022739,2]
[392578042,1761684644731,-500.0,0.00022739,2]
[392578043,1761684644741,-500.0,0.00022739,2]
[392578044,1761684644751,-500.0,0.00022739,2]
[392578045,1761684644762,-500.0,0.00022739,2]
[392578046,1761684644772,-500.0,0.00022739,2]
[392578047,1761684644782,-528.4,0.00022739,2]
[392578048,1761684644792,-500.0,0.00022739,2]
[392578049,1761684644802,-500.0,0.00022739,2]
[392578050,1761684644812,-891.88,0.00022739,2]
[392578051,1761684644823,-2371.14,0.00022739,2]
[392578052,1761684644834,-598.51,0.00022739,2]
[392578053,1761684644844,-500.0,0.00022739,2]
[392578054,1761684644855,-741.68,0.00022739,2]
[392578055,1761684644866,-500.0,0.00022739,2]
[392578056,1761684644878,-500.0,0.00022739,2]
[392578057,1761684644889,-500.0,0.00022739,2]
[392578058,1761684644899,-500.0,0.00022739,2]
[392578059,1761684644910,-1289.61,0.00022739,2]
[392578060,1761684644921,-584.89,0.00022739,2]
[392578061,1761684644932,-500.0,0.00022739,2]
[392578062,1761684644942,-500.0,0.00022739,2]
[392578063,1761684644952,-500.0,0.00022739,2]
[392578064,1761684644963,-960.71,0.00022739,2]
[392578065,1761684644973,-642.85,0.00022739,2]
[392578066,1761684644983,-500.0,0.00022739,2]
[392578067,1761684644994,-1384.85,0.00022739,2]
[392578068,1761684645004,-1494.95,0.00022739,2]
[392578069,1761684645015,-526.78,0.00022739,2]
[392578070,1761684645025,-921.96,0.00022739,2]
[392578071,1761684645035,-500.0,0.00022739,2]
[392578072,1761684645045,-328.78386566,0.00022739,2]
[392578073,1761684645055,-830.95,0.00022739,2]
[392578074,1761684645065,-500.0,0.00022739,2]
[392578075,1761684645075,-1687.31,0.00022739,2]
[392578076,1761684645086,-500.0,0.00022739,2]
[392578077,1761684645096,-500.0,0.00022739,2]
[392578078,1761684645106,-953.15,0.00022739,2]
[392578079,1761684645116,-2031.7,0.00022739,2]
[392578080,1761684645127,-500.0,0.00022739,2]
[392578081,1761684645137,-746.41,0.00022739,2]
[392578082,1761684645147,-1324.25,0.00022739,2]
[392578083,1761684645159,-920.67,0.00022739,2]
[392578085,1761684645169,-1110.59,0.00022739,2]
[392578086,1761684645180,-500.0,0.00022739,2]
[392578087,1761684645190,-500.0,0.00022739,2]
[392578088,1761684645200,-500.0,0.00022739,2]
[392578089,1761684645210,-996.9,0.00022739,2]
[392578090,1761684645220,-1509.24,0.00022739,2]
[392578091,1761684645230,-555.99,0.00022739,2]
[392578092,1761684645240,-500.0,0.00022739,2]
[392578093,1761684645250,-1004.61,0.00022739,2]
[392578094,1761684645260,-669.33,0.00022739,2]
[392578095,1761684645269,-500.0,0.00022739,2]
[392578096,1761684645280,-597.66,0.00022739,2]
[392578097,1761684645290,-500.0,0.00022739,2]
[392578098,1761684645301,-522.76,0.00022739,2]
[392578099,1761684645312,-500.0,0.00022739,2]
[392578100,1761684645324,-668.12,0.00022739,2]
[392578101,1761684645334,-500.0,0.00022739,2]
[392578102,1761684645344,-966.05,0.00022739,2]
[392578103,1761684645354,-500.0,0.0002274,2]
[392578104,1761684645366,-7824.31848685,0.00022809,2]
[392578105,1761684645377,-168.0,0.00022827,2]
[392578106,1761684645388,-168.0,0.00022873,2]
[392578107,1761684645397,-1082.10471026,0.00022889,2]
[392578108,1761684645406,-382.7231623,0.00022895,2]
[392578109,1761684645415,-4391.1665069,0.00023,3]
[392578110,1761684645426,-540.46,0.00023013,2]
[392578111,1761684645435,-500.0,0.00023013,2]
[392578112,1761684645444,-500.0,0.00023013,2]
[392578113,1761684645453,-500.0,0.00023013,2]
[392578114,1761684645462,-500.0,0.00023013,2]
[392578115,1761684645471,-441.30951366,0.00023013,2]
[392578116,1761684645481,-575.48,0.00023013,2]
[392578117,1761684645490,-500.0,0.00023013,2]
[392578118,1761684645500,-500.0,0.00023013,2]
[392578119,1761684645511,-500.0,0.00023013,2]
[392578120,1761684645523,-500.0,0.00023013,2]
[392578121,1761684645532,-500.0,0.00023013,2]
[392578122,1761684645541,-500.0,0.00023013,2]
[392578123,1761684645551,-500.0,0.00023013,2]
[392578124,1761684645562,-500.0,0.00023013,2]
[392578125,1761684645572,-500.0,0.00023013,2]
[392578126,1761684645582,-500.0,0.00023013,2]
[392578127,1761684645593,-500.0,0.00023013,2]
[392578128,1761684645605,-594.14,0.00023013,2]
[392578129,1761684645616,-500.0,0.00023013,2]
[392578130,1761684645625,-500.0,0.00023013,2]
[392578131,1761684645635,-500.0,0.00023013,2]
[392578132,1761684645644,-500.0,0.00023013,2]
[392578134,1761684645653,-648.27,0.00023013,2]
[392578136,1761684645663,-2433.62,0.00023013,2]
[392578137,1761684645672,-500.0,0.00023013,2]
[392578138,1761684645681,-500.0,0.00023013,2]
[392578139,1761684645690,-500.0,0.00023013,2]
[392578140,1761684645699,-500.0,0.00023013,2]
[392578141,1761684645708,-500.0,0.00023013,2]
[392578142,1761684645718,-500.0,0.00023013,2]
[392578143,1761684645729,-500.0,0.00023013,2]
[392578144,1761684645739,-500.0,0.00023013,2]
[392578145,1761684645749,-500.0,0.00023013,2]
[392578146,1761684645759,-500.0,0.00023013,2]
[392578147,1761684645768,-500.0,0.00023013,2]
[392578148,1761684645778,-500.0,0.00023013,2]
[392578149,1761684645787,-500.0,0.00023013,2]
[392578150,1761684645797,-500.0,0.00023013,2]
[392578151,1761684645807,-500.0,0.00023013,2]
[392578152,1761684645817,-500.0,0.00023013,2]
[392578153,1761684645828,-500.0,0.00023013,2]
[392578154,1761684645838,-940.28,0.00023013,2]
[392578155,1761684645847,-500.0,0.00023013,2]
[392578156,1761684645856,-500.0,0.00023013,2]
[392578157,1761684645866,-580.44,0.00023013,2]
[392578158,1761684645876,-500.0,0.00023013,2]
[392578159,1761684645885,-500.0,0.00023013,2]
[392578160,1761684645894,-500.0,0.00023013,2]
[392578161,1761684645904,-500.0,0.00023013,2]
[392578163,1761684645914,-500.0,0.00023013,2]
[392578164,1761684646211,-583.5991598,0.00023013,2]
[392578165,1761684646228,-500.0,0.00023013,2]
[392578166,1761684646243,-500.0,0.00023013,2]
[392578167,1761684646256,-500.0,0.00023013,2]
[392578168,1761684646265,-728.95,0.00023013,2]
[392578169,1761684646275,-500.0,0.00023013,2]
[392578170,1761684646283,-500.0,0.00023013,2]
[392578171,1761684646293,-500.0,0.00023013,2]
[392578172,1761684646302,-241.1549004,0.00023013,2]
[392578173,1761684646311,-500.0,0.00023013,2]
[392578174,1761684646321,-500.0,0.00023013,2]
[392578175,1761684646330,-500.0,0.00023013,2]
[392578176,1761684646340,-500.0,0.00023013,2]
[392578177,1761684646349,-500.0,0.00023013,2]
[392578178,1761684646359,-500.0,0.00023013,2]
[392578179,1761684646368,-557.52,0.00023013,2]
[392578180,1761684646379,-500.0,0.00023013,2]
[392578181,1761684646388,-500.0,0.00023013,2]
[392578182,1761684646397,-502.08,0.00023013,2]
[392578183,1761684646408,-500.0,0.00023013,2]
[392578184,1761684646417,-500.0,0.00023013,2]
[392578185,1761684646427,-500.0,0.00023013,2]
[392578186,1761684646437,-500.0,0.00023013,2]
[392578187,1761684646447,-500.0,0.00023013,2]
[392578188,1761684646456,-500.0,0.00023013,2]
[392578189,1761684646466,-500.0,0.00023013,2]
[392578190,1761684646476,-628.01,0.00023013,2]
[392578191,1761684646485,-793.46,0.00023013,2]
[392578192,1761684646494,-500.0,0.00023013,2]
[392578193,1761684646504,-500.0,0.00023013,2]
[392578194,1761684646518,-667.98,0.00023013,2]
[392578195,1761684646527,-262.5874821,0.00023013,2]
[392578196,1761684646536,-517.25104804,0.00023013,2]
[392578197,1761684646545,-896.12,0.00023013,2]
[392578198,1761684646555,-500.0,0.00023013,2]
[392578199,1761684646564,-500.0,0.00023013,2]
[392578200,1761684646574,-500.0,0.00023013,2]
[392578201,1761684646583,-500.0,0.00023013,2]
[392578202,1761684646594,-515.05,0.00023013,2]
[392578203,1761684646602,-500.0,0.00023013,2]
[392578204,1761684646612,-500.0,0.00023013,2]
[392578205,1761684646621,-500.0,0.00023013,2]
[392578206,1761684646631,-500.0,0.00023013,2]
[392578207,1761684646640,-500.0,0.00023013,2]
[392578208,1761684646649,-536.02,0.00023013,2]
[392578209,1761684646660,-513.34,0.00023013,2]
[392578210,1761684646669,-500.0,0.00023013,2]
[392578211,1761684646679,-500.0,0.00023013,2]
[392578212,1761684646688,-500.0,0.00023013,2]
[392578213,1761684646697,-500.0,0.00023013,2]
[392578214,1761684646706,-500.0,0.00023013,2]
[392578215,1761684646716,-500.0,0.00023013,2]
[392578216,1761684646725,-500.0,0.00023013,2]
[392578217,1761684646734,-500.0,0.00023013,2]
[392578218,1761684646743,-500.0,0.00023013,2]
[392578219,1761684646752,-173.79482208,0.00023013,2]
[392578220,1761684646761,-500.0,0.00023013,2]
[392578221,1761684646770,-500.0,0.00023013,2]
[392578222,1761684646779,-500.0,0.00023013,2]
[392578223,1761684646788,-500.0,0.00023013,2]
[392578224,1761684646797,-624.67,0.00023013,2]
[392578225,1761684646806,-500.0,0.00023013,2]
[392578226,1761684646815,-854.24,0.00023013,2]
[392578227,1761684646824,-500.0,0.00023013,2]
[392578228,1761684646832,-995.13,0.00023013,2]